Cogmind - Beta 14 @@@ ROGUE MODE // 2024.09.11 @ 23:34:31 Player: Null_error Result: Destroyed by S-10 Pest with Light Assault Rifle Performance ------------- Evolutions (0) 0 Regions Visited (1) 200 Robots Destroyed (25) 125 Value Destroyed (506) 506 Prototype IDs (2) 40 Alien Tech Used (0) 0 Bonus (0) 0 TOTAL SCORE: 871 Bonus ------- None Cogmind --------- Core Integrity 0/250 Matter 300/300 Energy 250/250 System Corruption 0% Temperature Hot (226) Movement Treading (160) Location -10/Materials Parts ------- > --- POWER (1) -------- Ion Engine > --- PROPULSION (2) --- Improved Treads Improved Treads > --- UTILITY (2) ------ Small Storage Unit Signal Interpreter > --- WEAPON (2) ------- Particle Cannon Particle Cannon > --- INVENTORY (8) ---- Improved Heat Sink Weight Redist. System Structural Scanner Propulsion Shielding Particle Gun Peak State ------------ > --- POWER ------------ Ion Engine > --- PROPULSION ------- Improved Treads Improved Treads > --- UTILITY ---------- Small Storage Unit Signal Interpreter > --- WEAPON ----------- Particle Cannon Particle Cannon > --- INVENTORY -------- Ion Engine Flight Unit Improved Heat Sink Weight Redist. System Structural Scanner Propulsion Shielding Particle Gun Light Assault Rifle [Rating: 12] Favorites ----------- Power Ion Engine Engine Ion Engine Propulsion Compact Wheel Treads Improved Treads Leg Aluminum Leg Wheel Compact Wheel Hover Unit Hover Unit Utility Small Storage Unit Device Seismic Detector Storage Small Storage Unit Processor Signal Interpreter Protection Propulsion Shielding Weapon Assault Rifle Energy Gun Small Laser Energy Cannon Particle Cannon Ballistic Gun Assault Rifle Build | -11 -10 ------- Run | Yrd Mat Slots Evolved . | . . Power . | . . Propulsion . | . . Utility . | . . Weapon . | . . Parts Attached 21 | 8 13 Power 3 | 1 2 Engine 3 | 1 2 Core . | . . Reactor . | . . Propulsion 6 | 2 4 Treads 2 | . 2 Leg 1 | . 1 Wheel 2 | 2 . Hover 1 | . 1 Flight . | . . Utility 5 | 2 3 Device 1 | 1 . Storage 2 | 1 1 Processor 1 | . 1 Hackware . | . . Protection 1 | . 1 Artifact . | . . Weapon 7 | 3 4 Energy Gun 2 | 1 1 Energy Cannon 2 | . 2 Ballistic Gun 3 | 2 1 Ballistic Cannon . | . . Launcher . | . . Special Weapon . | . . Impact Weapon . | . . Slashing Weapon . | . . Piercing Weapon . | . . Special Melee Weapon . | . . Unidentified Prototypes . | . . Parts Lost 4 | . 4 Power . | . . Propulsion 2 | . 2 Utility 1 | . 1 Weapon 1 | . 1 Highest Loss Streak 3 | . 3 To Critical Strikes . | . . Average Slot Usage (%) 90 | . 90 Engine 14 | . 14 Treads 5 | . 5 Leg 5 | . 5 Wheel 7 | . 7 Hover 3 | . 3 Device 3 | . 3 Storage 14 | . 14 Processor 6 | . 6 Protection 1 | . 1 Energy Gun 10 | . 10 Energy Cannon 5 | . 5 Ballistic Gun 11 | . 11 Peak Build Rating 12 | 7 12 Average Rating 7 | 5 7 On Entrance 3 | . 7 Naked Turns . | . . Heaviest Build 18 | 15 18 Greatest Support 46 | 32 46 Greatest Overweight (x) 5 | . 5 Average Overweight (x) . | . . Largest Inventory Capacity 8 | 8 8 Average Capacity 7 | 7 8 Most Carried 8 | 2 8 Average Carried 5 | 1 6 Final Capacity 8 | 8 8 Final Carried 5 | 2 5 Class Distribution -------------------- 63% | Mutant 36% | Scavenger-Mutant Dominant Class ---------------- Mutant | -10/Materials Resources | -11 -10 ----------- Run | Yrd Mat Matter Collected 612 | 330 282 Remotely . | . . Salvage Created 906 | 177 729 Parts 58 | 12 46 Haulers Intercepted . | . . Recyclers Shooed 3 | . 3 Parts Field Recycled . | . . Retrieved Matter . | . . Parts Self-Destructed . | . . Prevented . | . . Kills | -11 -10 ------- Run | Yrd Mat Combat Hostiles Destroyed 14 | . 14 Guns 10 | . 10 Cannons 4 | . 4 Classes Destroyed 7 | 2 5 Worker 2 | . 2 Tunneler 4 | 4 . Recycler 3 | 1 2 Operator 1 | . 1 Watcher 1 | . 1 Swarmer 4 | . 4 Grunt 10 | . 10 Best Kill Streak 3 | 3 3 Combat Bots Only 3 | . 3 Max Kills in Single Turn 2 | 2 2 Gunslinging . | . . Exploded . | . . Melee . | . . Uniques/NPCs Destroyed . | . . Combat | -11 -10 -------- Run | Yrd Mat Hostile Shots Fired 93 | . 93 Missed 23 | . 23 Damage Taken 800 | . 800 Core 256 | . 256 Absorbed by Shields . | . . Core Remaining (%) 100 | 100 . Volleys Fired 87 | 21 66 Largest 2 | 2 2 Hottest 136 | 60 136 Shots Fired 156 | 41 115 Gun 132 | 41 91 Cannon 24 | . 24 Launcher . | . . Special . | . . Kinetic 74 | 20 54 Thermal 51 | . 51 Explosive . | . . Electromagnetic 31 | 21 10 Robot Hit Streak 17 | 10 17 Robot Miss Streak 8 | 4 8 Penetration Max . | . . Secondary Targets . | . . Shots Hit Robots 89 | 23 66 Core Hits 37 | 6 31 Critical Kills . | . . Critical Parts Destroyed . | . . Critical Strikes 1 | 1 . Corrupt 1 | 1 . Melee Attacks . | . . Impact . | . . Slashing . | . . Piercing . | . . Sneak Attacks . | . . Combat Hostiles . | . . Follow-up Attacks . | . . Damage Inflicted 1373 | 354 1019 Guns 1013 | 306 707 Cannons 307 | . 307 Explosions 48 | 48 . Melee . | . . Ramming 5 | . 5 Kinetic 578 | 135 443 Thermal 549 | 48 501 Explosive . | . . Electromagnetic 241 | 171 70 Impact . | . . Slashing . | . . Piercing . | . . Highest Corruption . | . . Average Corruption . | . . Corruption Purged . | . . Corruption Blocked . | . . Overload Shots . | . . Overflow Damage 8 | 8 . Projectiles . | . . Explosions 8 | 8 . Melee . | . . Knockbacks . | . . Impact . | . . Kinetic . | . . Secondary . | . . Self-Inflicted Damage . | . . Shots . | . . Rammed 2 | . 2 Targets Rammed 2 | . 2 Kicked . | . . Crushed . | . . Highest Temperature 361 | 40 361 Average Temperature 111 | 22 120 Received Heat Transfer 303 | . 303 Effects 1 | . 1 Energy Bleed 1 | . 1 Siege Activations . | . . Robots Corrupted . | . . Combat Hostiles . | . . Parts Fried . | . . Impact Corruptions . | . . Robots Melted . | . . Combat Hostiles . | . . Parts Melted 1 | . 1 Heat Transferred 993 | 50 943 Parts Sabotaged . | . . Parts Stolen . | . . Parts Stripped . | . . Power Chain Reactions 1 | 1 . Alert | -11 -10 ------- Run | Yrd Mat Peak Influence 262 | 25 262 Initial 16 | . 16 Average 99 | 11 112 Maximum Alert Level 1 | . 1 Low Security (%) 83 | 100 80 Level 1 16 | . 19 Level 2 . | . . Level 3 . | . . Level 4 . | . . Level 5 . | . . High Security . | . . Max Security . | . . Squads Dispatched 2 | . 2 Investigation 1 | . 1 Extermination . | . . Reinforcement 1 | . 1 Assault . | . . Garrison . | . . Intercept . | . . Searches Triggered . | . . Construction Impeded . | . . Haulers Reinforced . | . . Active Scanning Responses . | . . Cargo Convoy Interrupts . | . . Stealth | -11 -10 --------- Run | Yrd Mat Distress Signals 2 | . 2 Communications Jammed . | . . Distress Signals . | . . Times Spotted 26 | . 26 Peak Tracking Total 3 | . 3 Tactical Retreats 1 | . 1 Traps | -11 -10 ------- Run | Yrd Mat Traps Triggered 2 | . 2 Indirectly . | . . Trap Hack Attempts . | . . Triggered . | . . Disarmed . | . . Reprogrammed . | . . Reused . | . . Traps Extracted . | . . Installed . | . . Triggered . | . . Machines | -11 -10 ---------- Run | Yrd Mat Machines Disabled 2 | . 2 Max in Single Turn 1 | . 1 Machines Repaired . | . . Machines Dismantled . | . . Machines Sabotaged . | . . Overloaded Fab Kills . | . . Hacking | -11 -10 --------- Run | Yrd Mat Machines Accessed 2 | . 2 Terminals 2 | . 2 Fabricators . | . . Repair Stations . | . . Recycling Units . | . . Scanalyzers . | . . Garrison Access . | . . Total Hacks 3 | . 3 Successful 2 | . 2 Failed 1 | . 1 Catastrophic . | . . Database Lockouts . | . . Manual 4 | . 4 Terminals 3 | . 3 Fabricators . | . . Repair Stations . | . . Recycling Units . | . . Scanalyzers . | . . Garrison Access . | . . Terminal Hacks 2 | . 2 Robot Analysis 1 | . 1 Prototype ID Bank 1 | . 1 Fabricator Hacks . | . . Repair Station Hacks . | . . Recycling Unit Hacks . | . . Scanalyzer . | . . Garrison Access Hacks . | . . Unauthorized Hacks . | . . Terminals . | . . Fabricators . | . . Repair Stations . | . . Recycling Units . | . . Scanalyzers . | . . Garrison Access . | . . Data Cores Recovered . | . . Used . | . . Hacking Detections 1 | . 1 Full Trace Events 1 | . 1 Feedback Events . | . . Feedback Blocked . | . . Robot Schematics Acquired . | . . Robots Built . | . . Authchips . | . . Time . | . . Total Robot Build Rating . | . . Part Schematics Acquired . | . . Parts Built . | . . Authchips . | . . Time . | . . Total Part Build Rating . | . . Parts Repaired . | . . Time . | . . Parts Recycled . | . . Recycled Matter . | . . Retrieved Matter . | . . Retrieved Components . | . . Parts Scanalyzed . | . . Part Schematics Acquired . | . . Parts Damaged . | . . Bothacking | -11 -10 ------------ Run | Yrd Mat Used RIF Installer . | . . Robots Hacked . | . . Non-combat . | . . Combat . | . . Robot Hacks Applied . | . . Relay Couplers Released . | . . Fabnet Peak Effective % . | . . Robots Rewired . | . . Allies Hacked . | . . Hacks Repelled . | . . Allies | -11 -10 -------- Run | Yrd Mat Total Allies . | . . Largest Group . | . . Highest-Rated Group . | . . Highest-Rated Ally . | . . Total Orders . | . . Ally Attacks . | . . Total Damage . | . . Kills . | . . Allies Corrupted . | . . Allies Melted . | . . Intel | -11 -10 ------- Run | Yrd Mat Robot Analysis Total 1 | . 1 Derelict Logs Recovered . | . . Drone Launches . | . . Drone Recoveries . | . . Exploration | -11 -10 ------------- Run | Yrd Mat Turns Passed 1206 | 150 1056 Spaces Moved 579 | 77 502 Core 40 | 1 39 Treads 102 | . 102 Legs 206 | . 206 Wheels 231 | 76 155 Hover . | . . Flight . | . . Fastest Speed 50 | 50 100 Average Speed 152 | 99 160 Slowest Speed 300 | 100 300 Overloaded Moves . | . . Propulsion Burnouts . | . . Robots Hopped . | . . Cave-ins Triggered . | . . Exploration Rate (%) 31 | 5 58 Regions Visited 1 Branch Regions . Pre-discovered Areas . | . . Known Exits Taken . | . . Unknown Exits Taken 1 | 1 . Scrap Searched . | . . Spaces Dug . | . . Terrain Destroyed 4 | 4 . Melee . | . . Projectile . | . . AOE 4 | 4 . Terrain Rammed . | . . Walls Destroyed . | . . Machines Disabled . | . . Actions | -11 -10 --------- Run | Yrd Mat Total 736 | 106 630 Wait 32 | . 32 Move 578 | 76 502 Hop . | . . Pick Up 9 | 1 8 Fast Attach 14 | 7 7 Attach . | . . Detach . | . . Swap 7 | 1 6 Drop 7 | . 7 Fire 87 | 21 66 Melee . | . . Ram 1 | . 1 Kick . | . . Crush 1 | . 1 Escape Stasis . | . . Rewire . | . . Trap . | . . Miscellaneous . | . . Route ------- -11/Scrapyard -10/Materials (discovered 2 exits: *Mat / *Min) History --------- Turn | Location | Event 20 | -11/Scrapyard | Discovered new exit (range 16) 151 | -11/Scrapyard | Entered Materials 259 | -10/Materials | Discovered new exit (range 15) 306 | -10/Materials | Build established: Mutant 415 | -10/Materials | Core integrity fell below 50% 457 | -10/Materials | Lost 3 parts (2n1u) 843 | -10/Materials | Build established: Scavenger-Mutant 936 | -10/Materials | Identified exit to Materials 974 | -10/Materials | Discovered new exit (range 14) 1045 | -10/Materials | Identified exit to Mines 1156 | -10/Materials | Core integrity fell below 20% 1207 | -10/Materials | Destroyed by S-10 Pest with Light Assault Rifle Last Messages --------------- 01168_ G-34 Mercenary destroyed. 01168_ K-01 Serf destroyed. 01169_ K-01 Serf collects debris. 01181_ R-06 Scavenger collects Lgt. Ion Engine. 01181_ Slammed into K-01 Serf. 01184_ K-01 Serf collects debris. 01185_ R-06 Scavenger collects Welding Torch. 01187_ R-06 Scavenger collects Lgt. Ion Engine. 01189_ K-01 Serf collects debris. 01190_ R-06 Scavenger collects Aluminum Leg. 01190_ K-01 Serf collects debris. 01191_ R-06 Scavenger collects Aluminum Leg. 01194_ K-01 Serf collects debris. 01194_ R-06 Scavenger collects Heat Sink. 01195_ S-10 Pest destroyed. 01195_ K-01 Serf destroyed. 01197_ K-01 Serf collects debris. 01197_ R-06 Scavenger collects Wheel. 01201_ K-01 Serf collects debris. [Achievement: Back For More] Map ----- +----------------------------------------------------+ | ????????#!! ##############???????????????????? | | ????????#! ###### #???????????????????? | | ????????#= # """ #???????????????????? | | ????????#= # Y" #???????????????????? | | ????????#] # """ #???????????????????? | | ????????# ] ###### # % #???????????????????? | | ???????########### ##+###########+##???????????? | | ???????# ## ^ % ??????????? | | ???????# + ??????????? | | ???????# ## ??????????? | | ???????# """ ## #########+##???????????? | | ???????# """""%## #??????????????????????? | | ???????# """""%## """ r#????????????????? ????? | | ???????# """" ## """ #???????????????? ??? | | ???????# "" ## """ #???????????????? ? | | ??????+# % ## "" #???????????????? #? | | ?????# ######;### """ #???????????????# #? | | ?????# ??# =% ^ "" #???????????????# #? | | ?????# ??# < = """ #???????????????# #? | | ????? #?# s %^ #???????????????# #? | | ?????# #?# s ^ ##??????????????# #? | | ?????# #?##T##### % T#??????????????# #? | | ###??# T??##????# [%% ##??????????????# #? | | # ?# #????????# !** k #??????????????## ## | | # ?# ########## ################ | | # # !%@%! | | # # " =% % % """ | | # + %########## "" = """ | | # # #????????# a ##################### """ | | # # #????????# #???????????????????# | | # ?# #????????#% #???????????????????# | | # ?# #????????# #????????????######## """ | | ###??# ########## #????????????# # """ | | ?????# # # #????????????# *#= """ | | ?????# # """# #????????????# """=%+ | | ?????# # """# #????????????# """ =# | | ?????# # """# #????????????# """ # """ | | ?????# + # #????????????# # """ | | ?????# # """# #????????????######## """ | | ?????# # """# #????????????# # | | ?????# # """# #????????????# # | | ?????# # # #????????????#""" + """ | | ?????# ########## #?######?????#""" # """ | | ?????# #????????# # #?????#""" # """ | | ?????# #????????# # """#?????# ?# | | ?########????????# + """#?????######?# | | ?# #????????# # """#?????# # ##### | | ?# ########## # #?????# # #???? | | ?# + #? #?????# + #???? | | ?# ^# #######+#########?????# "Y" # #???? | +----------------------------------------------------+ Best States ------------- Heat Dissipation 25 Energy Generation 10 Energy Capacity 250 Matter Stores 300 Matter Capacity 300 Sight Range 16 Terrain Scan Density 10 Propulsion Shielding 33 Evasion (%) 40 Recoil Reduction 2 Item Schematics ----------------- None Robot Schematics ------------------ None Fabricated ------------ Nothing Alien Tech Used ----------------- None Achievements -------------- Back For More Challenges ------------ None Game ------ Seed SniperDecoyKinecellerator Manual? 0 Play Time 00:11:26 Cumulative 46.6 hours Start 2024.09.11 @ 23:24:43 End 2024.09.11 @ 23:34:31 Sessions 1 Manual Loads 0 Difficulty Rogue Special Mode None Game No. 50 Rogue 50 Adventurer 0 Explorer 0 Win Type - Total 0 Types 0/0/0/0/0/0/0/0/0 Lore% 19 Gallery% 43 Achievement% 28 Wizard Run 0 Options --------- Layout 2 ASCII 0 Keyboard 1 Movement Numpad Keybinds 0 Fullscreen 2 Font 24/Crisp Map View 50x44 Zoom Use 0% Tactical HUD 1 Map Filters NONE Filters LOW_CONTRAST(5,20,15) Steam 1 RUN: a24c7a62-2512-4b03-968a-63c633f1b624